bitfinex-derivatives/quotes_SOLF0:USTF0_20250901
["timestamp","ask_amount","ask_price","bid_price","bid_amount"]
[1756741500332,0.14,198.59,198.47,2.84131687]
[1756741500636,26.24,198.58,198.48,7.7]
[1756741501135,0.14,198.59,198.51,0.03619688]
[1756741501335,53.58,198.59,198.52,7.7]
[1756741501833,2.98131687,198.58,198.51,0.03619688]
[1756741502032,15.1,198.65,198.51,0.03619688]
[1756741502033,2.84131687,198.61,198.51,7.73619688]
[1756741502330,338.42,198.66,198.51,7.73619688]
[1756741502331,122.24,198.62,198.51,12.26959688]
[1756741502532,2.84131687,198.58,198.51,7.7]
[1756741502834,2.84131687,198.52,198.43,7.7]
[1756741503029,125.7,198.51,198.43,7.7]
[1756741503229,0.14,198.51,198.43,7.7]
[1756741503432,8.42131687,198.55,198.47,7.7]
[1756741503932,0.14,198.54,198.43,7.7]
[1756741504135,0.14,198.54,198.49,0.03205207]
[1756741504436,15.1,198.63,198.49,0.03205207]
[1756741504437,35.68,198.56,198.5,7.7]
[1756741505230,35.82,198.56,198.51,0.03432335]
[1756741505434,0.14,198.55,198.51,0.03432335]
[1756741505832,344.01414077,198.66,198.51,0.03432335]
[1756741506038,0.14,198.62,198.51,0.03432335]
[1756741506234,0.14,198.55,198.45,7.7]
[1756741506433,0.14,198.55,198.48,7.7]
[1756741508038,2.84131687,198.59,198.48,7.7]
[1756741508234,0.1,198.6,198.5,0.03565701]
[1756741508538,26.36,198.6,198.51,8.15]
[1756741509344,0.1,198.58,198.5,0.03565701]
[1756741509637,26.26,198.6,198.5,0.03565701]
[1756741509638,2.94131687,198.56,198.5,0.03565701]
[1756741512549,29.24,198.58,198.51,8.15]
[1756741512844,0.1,198.57,198.5,0.03565701]
[1756741513045,0.1,198.57,198.48,10.99131687]
[1756741513248,0.1,198.57,198.52,0.03489405]
[1756741513446,57.72,198.58,198.52,0.03489405]
[1756741513641,0.1,198.57,198.52,0.03489405]
[1756741513842,57.82,198.58,198.52,0.03489405]
[1756741515150,0.1,198.64,198.52,8.18489405]
[1756741515447,0.1,198.64,198.55,8.15]
[1756741515948,125.62,198.64,198.58,0.03577093]
[1756741516151,125.52,198.64,198.58,8.18577093]
[1756741516349,341.26131687,198.66,198.58,8.18577093]
[1756741516545,463.94,198.66,198.58,8.18577093]
[1756741516946,338.42,198.66,198.58,8.18577093]
[1756741517143,0.1,198.65,198.58,8.18577093]
[1756741518949,338.42,198.66,198.58,8.18577093]
[1756741519450,125.5,198.65,198.58,8.18577093]
[1756741520654,338.42,198.66,198.58,8.18577093]
[1756741521047,463.92,198.66,198.58,8.18577093]
[1756741523550,338.42,198.66,198.61,8.15]
[1756741523755,463.9,198.66,198.6,2.84131687]
[1756741524250,463.9,198.66,198.61,8.15]
[1756741524457,463.9,198.66,198.6,8.15]
[1756741525449,0.1,198.65,198.58,0.03577093]
[1756741526657,463.9,198.66,198.58,8.18577093]
[1756741526658,125.46,198.64,198.58,8.18577093]
[1756741527453,338.42,198.66,198.6,2.84131687]
[1756741527655,463.88,198.66,198.61,8.15]
[1756741528056,125.46,198.66,198.6,2.84131687]
[1756741528253,0.1,198.69,198.61,8.15]
[1756741528455,28.56,198.68,198.61,8.15]
[1756741529564,28.56,198.68,198.63,0.03546353]
[1756741529863,0.1,198.67,198.63,0.03546353]
[1756741530053,28.56,198.68,198.63,0.03546353]
[1756741530255,0.1,198.71,198.63,8.18546353]
[1756741532063,0.97615499,198.75,198.66,8.15]
[1756741532264,125.44,198.74,198.66,8.15]
[1756741532969,125.44,198.74,198.68,0.03584173]
[1756741533569,125.54,198.73,198.68,8.18584173]
[1756741534371,125.44,198.73,198.68,8.18584173]
[1756741534571,0.1,198.72,198.68,8.18584173]
[1756741534970,0.1,198.72,198.68,0.03584173]
[1756741535169,125.44,198.73,198.68,0.03584173]
[1756741535668,0.1,198.72,198.68,0.03584173]
[1756741536173,125.44,198.73,198.68,0.03584173]
[1756741536574,0.1,198.72,198.68,0.03584173]
[1756741536769,0.1,198.75,198.68,8.18584173]
[1756741536970,125.42,198.74,198.68,0.03584173]
[1756741537166,0.1,198.73,198.68,0.03584173]
[1756741537675,125.52,198.74,198.68,0.03584173]
[1756741539666,339.35606676,198.78,198.68,7.46584173]
[1756741539876,125.4,198.77,198.69,2.84131687]
[1756741541975,0.12,198.76,198.69,2.84131687]
[1756741542182,2.96131687,198.76,198.68,0.03584173]
[1756741543081,0.12,198.72,198.68,0.03584173]
[1756741543272,0.12,198.7,198.68,0.03584173]
[1756741543676,125.4,198.69,198.68,0.03584173]
[1756741544883,125.52,198.69,198.68,0.03584173]
[1756741546679,0.12,198.73,198.68,0.03584173]
[1756741546884,125.5,198.72,198.68,7.46584173]
[1756741547080,125.38,198.73,198.68,0.03584173]
[1756741547383,125.5,198.74,198.69,7.43]
[1756741547584,0.12,198.74,198.69,7.43]
[1756741547785,125.5,198.74,198.69,7.43]
[1756741549188,339.47606676,198.78,198.68,7.46584173]
[1756741549590,125.38,198.77,198.68,7.46584173]
[1756741550784,125.38,198.77,198.69,2.84131687]
[1756741550985,339.47606676,198.78,198.69,2.84131687]
[1756741551193,125.38,198.76,198.69,2.84131687]
[1756741552688,0.12,198.75,198.68,0.03584173]
[1756741555887,0.12,198.75,198.68,10.3071586]
[1756741556891,0.12,198.75,198.68,7.46584173]
[1756741558383,338.48,198.78,198.7,2.84131687]
[1756741558591,125.36,198.77,198.7,2.84131687]
[1756741559189,0.11,198.76,198.67,2.84131687]
[1756741559391,0.11,198.76,198.72,0.03444089]
[1756741559693,125.36,198.77,198.72,0.03444089]
[1756741559893,0.11,198.76,198.72,0.03444089]
[1756741560092,125.36,198.77,198.72,0.03444089]
[1756741560491,0.11,198.76,198.72,0.03444089]
[1756741560996,125.36,198.77,198.72,0.03444089]
[1756741561603,0.11,198.76,198.72,0.03444089]
[1756741561993,125.36,198.77,198.72,0.03444089]
[1756741562291,0.11,198.76,198.72,0.03444089]
[1756741562499,125.36,198.77,198.72,0.03444089]
[1756741562698,0.11,198.76,198.72,0.03444089]
[1756741563399,126.23601163,198.77,198.72,0.03444089]
[1756741563695,0.11,198.76,198.72,0.03444089]
[1756741563895,126.23601163,198.77,198.72,0.03444089]
[1756741564195,0.11,198.76,198.72,0.03444089]
[1756741564399,126.23601163,198.77,198.72,0.03444089]
[1756741564599,125.34,198.76,198.72,0.03444089]
[1756741564897,0.11,198.75,198.72,0.03444089]
[1756741565291,125.34,198.76,198.72,0.03444089]
[1756741565498,128.18131687,198.76,198.72,0.03444089]
[1756741565798,2.95131687,198.73,198.72,0.03444089]
[1756741567298,0.11,198.75,198.72,0.03444089]
[1756741567499,125.34,198.73,198.72,0.03444089]
[1756741568291,125.34,198.73,198.72,8.19444089]
[1756741568689,0.11,198.79,198.72,8.19444089]
[1756741568898,29.16,198.78,198.72,8.19444089]
[1756741569695,3.71710804,198.82,198.72,8.19444089]
[1756741570003,125.34,198.82,198.75,8.16]
[1756741570899,125.34,198.82,198.77,8.19483805]
[1756741571296,0.11,198.81,198.77,0.03483805]
[1756741571898,125.34,198.82,198.77,0.03483805]
[1756741572098,0.11,198.81,198.77,0.03483805]
[1756741572501,125.34,198.82,198.77,0.03483805]
[1756741573707,0.11,198.81,198.77,0.03483805]
[1756741574093,0.11,198.81,198.77,8.19483805]
[1756741574494,125.34,198.82,198.77,0.03483805]
[1756741575011,0.11,198.81,198.77,0.03483805]
[1756741575503,0.11,198.79,198.77,0.03483805]
[1756741575703,125.43,198.78,198.77,0.03483805]
[1756741577504,0.11,198.78,198.77,0.03483805]
[1756741577704,125.41,198.78,198.77,0.03483805]
[1756741580404,125.3,198.78,198.77,0.03483805]
[1756741581503,0.11,198.81,198.77,0.03483805]
[1756741581709,125.3,198.8,198.77,0.03483805]
[1756741581900,125.3,198.8,198.77,8.19483805]
[1756741582305,341.10131687,198.85,198.78,8.16]
[1756741582306,338.37,198.85,198.78,8.16]
[1756741582607,125.3,198.84,198.78,8.16]
[1756741583010,339.2456259,198.85,198.78,8.16]
[1756741583201,338.37,198.85,198.78,8.16]
[1756741583405,125.28,198.84,198.78,8.16]
[1756741583606,0.11,198.83,198.77,2.87615492]
[1756741584312,0.11,198.83,198.77,11.03615492]
[1756741585007,125.28,198.84,198.77,11.03615492]
[1756741587712,338.37,198.85,198.78,8.16]
[1756741588011,125.26,198.84,198.81,8.16]
[1756741588713,125.26,198.84,198.81,8.19532843]
[1756741589010,125.37,198.84,198.81,8.19532843]
[1756741589210,0.11,198.83,198.81,0.03532843]
[1756741589415,125.26,198.84,198.81,0.03532843]
[1756741589617,125.26,198.84,198.81,8.19532843]
[1756741590515,0.11,198.87,198.81,8.19532843]
[1756741596821,125.24,198.89,198.81,8.19532843]
[1756741597117,125.33,198.93,198.84,8.16]
[1756741597424,125.33,198.93,198.87,8.16]
[1756741597815,125.33,198.93,198.88,0.03382745]
[1756741598021,125.33,198.93,198.89,7.95]
[1756741598322,125.22,198.93,198.89,7.95]
[1756741598515,0.1,198.92,198.88,7.98382745]
[1756741599218,125.22,198.93,198.88,0.03382745]
[1756741599724,0.1,198.92,198.88,7.98382745]
[1756741599921,125.22,198.93,198.89,7.95]
[1756741600521,125.22,198.93,198.88,0.03382745]
[1756741601023,125.22,198.93,198.89,7.95]
[1756741601426,125.22,198.93,198.88,0.03382745]
[1756741602125,338.16,198.97,198.91,7.95]
[1756741602723,0.1,198.98,198.91,7.95]
[1756741603422,125.18,198.99,198.91,7.95]
[1756741603626,125.18,198.99,198.93,0.03606868]
[1756741604421,125.18,198.99,198.94,7.95]
[1756741604627,0.1,199.01,198.94,7.95]
[1756741604823,125.16,199.02,198.96,2.84131687]
[1756741605217,125.16,199.02,198.96,10.79131687]
[1756741605621,125.16,199.02,198.98,7.95]
[1756741605832,125.26,199.02,198.98,7.95]
[1756741606722,0.1,199.01,198.97,0.03436824]
[1756741606925,0.1,199.01,198.97,7.98436824]
[1756741609532,125.16,199.02,198.97,0.03436824]
[1756741610128,0.1,199.01,198.97,0.03436824]
[1756741610518,0.1,199.01,198.97,7.98436824]
[1756741612228,125.16,199.02,198.97,7.98436824]
[1756741612429,0.1,199.01,198.97,7.98436824]
[1756741613030,125.26,199.02,198.97,7.98436824]
[1756741613338,0.1,199.01,198.97,7.98436824]
[1756741613731,0.1,199.03,198.97,0.03436824]
[1756741615431,0.1,198.99,198.97,0.03436824]
[1756741615623,0.1,198.99,198.86,7.95]
[1756741615828,0.06,198.95,198.86,7.95]
[1756741616035,21.78,198.95,198.86,7.95]
[1756741617036,0.03329734,198.92,198.89,7.95]
[1756741617226,0.03329734,198.92,198.88,2.84131687]
[1756741617428,22.16,198.98,198.87,7.95]
[1756741617630,0.03,198.97,198.87,10.79131687]
[1756741617825,0.03292167,198.92,198.88,7.95]
[1756741618131,0.03292167,198.92,198.87,2.84131687]
[1756741618331,0.03292167,198.92,198.88,7.95]
[1756741618532,0.06292167,198.92,198.88,7.95]
[1756741618729,0.06292167,198.92,198.87,2.84131687]
[1756741618730,0.03292167,198.92,198.87,2.84131687]
[1756741619336,0.03292167,198.92,198.91,7.95]
[1756741619834,6.38,198.99,198.91,7.95]
[1756741620330,0.03,199.0,198.91,7.95]
[1756741620533,34.61,199.0,198.91,7.95]
[1756741621729,0.03,198.99,198.91,7.95]
[1756741622131,0.03234656,198.97,198.91,7.95]
[1756741622434,0.03,198.96,198.87,10.79131687]
[1756741623531,0.0320927,198.93,198.87,2.84131687]
[1756741623838,0.0320927,198.93,198.91,7.95]
[1756741624240,0.32,198.98,198.91,7.95]
[1756741625242,0.03176203,198.96,198.91,7.95]
[1756741625440,0.03176203,198.96,198.9,2.84131687]
[1756741625640,0.03176203,198.96,198.91,7.95]
[1756741625841,0.03176203,198.96,198.9,2.84131687]
[1756741626039,0.03176203,198.96,198.91,7.95]
[1756741626239,0.03176203,198.96,198.9,2.84131687]
[1756741626440,0.03176203,198.96,198.91,7.95]
[1756741627238,0.03176203,198.96,198.9,2.84131687]
[1756741628840,0.03176203,198.96,198.91,7.7]
[1756741629239,0.03176203,198.96,198.87,2.84131687]
[1756741629439,0.05,198.95,198.88,7.7]
[1756741629941,2.84131687,198.99,198.8,2.84131687]
[1756741629942,0.05,199.0,198.9,2.84131687]
[1756741630237,0.03344206,198.93,198.91,7.7]
[1756741630438,0.05,199.0,198.91,7.7]
[1756741630644,63.88,199.02,198.94,7.7]
[1756741630945,0.05,199.01,198.94,7.7]
[1756741631734,2.89131687,199.01,198.9,7.7]
[1756741631940,0.05,199.0,198.9,7.7]
[1756741632234,0.05,198.97,198.87,2.84131687]
[1756741632446,0.05,198.97,198.88,7.7]
[1756741633336,0.03202956,198.94,198.88,7.7]
[1756741635641,0.08202956,198.94,198.88,7.7]
[1756741637348,10.96202956,198.94,198.84,7.7]
[1756741641244,0.05,198.91,198.84,7.7]
[1756741641657,0.05,198.88,198.8,7.7]
[1756741644057,0.05,198.88,198.73,4.21861381]
[1756741644058,0.05,198.85,198.73,10.54131687]
[1756741644257,0.05,198.85,198.74,7.7]
[1756741645063,0.03394558,198.81,198.74,7.7]
[1756741646765,0.03394558,198.81,198.76,2.84131687]
[1756741647660,0.03394558,198.81,198.77,7.7]
[1756741648066,0.07,198.89,198.79,2.84131687]
[1756741648067,24.63131687,198.89,198.79,2.84131687]
[1756741648269,24.63131687,198.89,198.8,7.7]
[1756741649473,24.63131687,198.89,198.83,0.03235857]
[1756741650067,0.07,198.89,198.83,0.03235857]
[1756741650271,0.07,198.89,198.83,7.73235857]
[1756741653071,121.40131687,198.91,198.83,7.73235857]
[1756741654572,2.84131687,198.91,198.83,7.73235857]
[1756741654772,127.88131687,198.91,198.83,7.73235857]
[1756741655773,0.1,198.9,198.83,0.03235857]
[1756741655975,2.84131687,198.88,198.83,0.03235857]
[1756741656172,0.1,198.84,198.83,0.03235857]
[1756741657674,125.14,198.87,198.83,0.03235857]
[1756741657975,125.14,198.87,198.83,7.59235857]
[1756741658171,125.04,198.87,198.84,7.56]
[1756741658366,125.04,198.88,198.84,7.56]
[1756741658766,125.14,198.9,198.84,7.56]
[1756741659570,2.94131687,198.94,198.84,7.56]
[1756741659776,125.04,198.93,198.84,7.56]
[1756741661772,125.04,198.93,198.87,0.03503933]
[1756741662876,0.1,198.94,198.87,7.59503933]
[1756741663181,125.02,198.93,198.87,7.59503933]
[1756741664579,0.1,198.94,198.87,7.59503933]
[1756741664779,125.02,198.93,198.87,7.59503933]
[1756741666878,125.0,198.93,198.87,7.59503933]
[1756741667080,125.1,198.94,198.87,7.59503933]
[1756741668684,125.1,198.94,198.87,0.03503933]
[1756741669586,127.94131687,198.94,198.87,0.03503933]
[1756741669787,0.1,198.9,198.87,0.03503933]
[1756741670087,2.94131687,198.88,198.87,0.03503933]
[1756741671787,127.94131687,198.88,198.87,0.03503933]
[1756741676291,128.34131687,198.88,198.78,7.56]
[1756741676492,0.06,198.84,198.78,7.56]
[1756741677795,2.84131687,198.85,198.78,7.56]
[1756741677989,0.03438448,198.83,198.77,7.56]
[1756741680285,0.07438448,198.83,198.77,7.56]
[1756741683290,0.07438448,198.83,198.73,7.56]
[1756741683291,0.04,198.81,198.73,7.56]
[1756741683494,2.84131687,198.79,198.73,7.56]
[1756741683893,127.82131687,198.79,198.73,7.56]
[1756741684789,127.82131687,198.79,198.7,2.84131687]
[1756741684790,0.03194132,198.78,198.7,2.84131687]
[1756741684990,0.03194132,198.78,198.71,7.56]
[1756741685796,0.04,198.77,198.71,7.56]
[1756741686293,0.04,198.75,198.66,7.56]
[1756741686486,2.84131687,198.73,198.66,7.56]
[1756741686893,0.04,198.72,198.66,7.56]
[1756741687391,0.07201865,198.71,198.66,7.56]
[1756741687693,12.73201865,198.71,198.61,7.56]
[1756741688397,0.03201865,198.71,198.61,7.56]
[1756741691699,0.07,198.7,198.61,7.56]
[1756741691995,0.03201865,198.71,198.61,7.56]
[1756741692200,17.65201865,198.71,198.61,7.56]
[1756741692900,0.03201865,198.71,198.61,7.56]
[1756741693102,19.75201865,198.71,198.61,7.56]
[1756741694303,0.03201865,198.71,198.61,7.56]
[1756741694502,21.75201865,198.71,198.61,7.56]
[1756741696204,0.07,198.7,198.61,7.56]
[1756741696598,2.91131687,198.7,198.61,7.56]
[1756741699402,0.07,198.69,198.61,7.56]
[1756741699600,2.84131687,198.67,198.61,7.56]
[1756741700004,2.84131687,198.67,198.56,7.59]
[1756741700205,2.91131687,198.64,198.56,7.59]
[1756741700406,28.78,198.63,198.56,7.59]
[1756741700609,28.81423161,198.63,198.56,7.59]
[1756741701006,53.69423161,198.63,198.56,7.59]
[1756741701603,0.07,198.62,198.56,7.59]
[1756741702511,2.91131687,198.62,198.56,7.59]
[1756741704409,78.24,198.61,198.56,7.59]
[1756741704610,0.07,198.6,198.56,7.59]
[1756741705209,2.84131687,198.59,198.52,7.59]
[1756741706308,0.03369748,198.57,198.52,7.59]
[1756741706508,0.03369748,198.57,198.48,7.59]
[1756741709405,0.03369748,198.57,198.48,10.43131687]
[1756741709610,0.03369748,198.57,198.49,7.59]
[1756741712715,0.10369748,198.57,198.49,7.59]
[1756741712915,2.84131687,198.56,198.49,7.59]
[1756741713211,0.07,198.55,198.49,7.59]
[1756741714211,2.84131687,198.53,198.44,7.59]
[1756741715018,27.83,198.52,198.44,7.59]
[1756741715317,0.03311121,198.5,198.44,7.59]
[1756741715914,0.10311121,198.5,198.44,7.59]
[1756741716111,0.03311121,198.5,198.44,7.59]
[1756741717318,0.07,198.49,198.4,7.59]
[1756741718613,72.38,198.48,198.4,7.59]
[1756741718819,2.87442808,198.5,198.4,7.59]
[1756741719014,91.86,198.48,198.4,7.59]
[1756741719716,111.29,198.49,198.4,7.59]
[1756741719914,0.03206493,198.46,198.4,7.59]
[1756741726828,2.84131687,198.42,198.32,8.2]
[1756741727321,2.84131687,198.42,198.33,8.2]
[1756741727628,0.03487561,198.39,198.33,8.2]
[1756741730324,0.12487561,198.39,198.33,8.2]
[1756741730530,52.22487561,198.39,198.33,8.2]
[1756741730727,52.22487561,198.39,198.21,8.2]
[1756741730938,52.22487561,198.39,198.27,8.2]
[1756741731129,52.1,198.39,198.27,8.2]
[1756741731328,2.84131687,198.37,198.27,8.2]
[1756741731831,0.09,198.36,198.27,8.2]
[1756741732234,25.64,198.36,198.27,8.2]
[1756741732425,50.92,198.36,198.28,8.2]
[1756741733835,2.93131687,198.37,198.28,8.2]
[1756741734033,26.0,198.36,198.28,8.2]
[1756741734530,2.93131687,198.34,198.28,8.2]
[1756741734732,0.09,198.33,198.24,8.2]
[1756741734936,2.93131687,198.31,198.19,2.84131687]
[1756741735232,2.84131687,198.28,198.2,8.2]
[1756741735436,2.84131687,198.28,198.1,8.2]
[1756741735437,0.09,198.26,198.1,8.2]
[1756741735634,0.09,198.26,198.15,8.2]
[1756741736231,28.13,198.26,198.15,8.2]
[1756741736432,28.13,198.26,198.17,8.2]
[1756741737130,54.64,198.26,198.17,8.2]
[1756741737337,54.73,198.26,198.17,8.2]
[1756741738336,2.84131687,198.28,198.17,8.2]
[1756741738537,125.8,198.27,198.17,8.2]
[1756741738834,125.82,198.28,198.19,2.84131687]
[1756741739036,125.82,198.28,198.2,8.2]
[1756741739539,125.92,198.28,198.2,8.2]
[1756741739738,0.1,198.28,198.2,8.2]
[1756741740236,338.78,198.31,198.2,8.2]
[1756741740441,464.56,198.31,198.23,8.2]
[1756741740838,464.66,198.31,198.23,8.2]
[1756741741633,2.84131687,198.3,198.23,8.2]
[1756741742237,338.88,198.31,198.23,8.2]
[1756741742442,125.9,198.3,198.23,8.2]
[1756741742636,128.74131687,198.3,198.21,2.84131687]
[1756741743037,125.92,198.29,198.21,2.84131687]
[1756741743232,0.1,198.28,198.19,8.2]
[1756741744241,338.78,198.31,198.21,2.84131687]
[1756741744441,125.9,198.28,198.22,8.2]
[1756741745032,125.88,198.28,198.22,8.2]
[1756741746940,0.1,198.3,198.22,8.2]
[1756741747137,338.78,198.31,198.22,8.2]
[1756741747342,125.86,198.3,198.24,8.2]
[1756741747735,338.78,198.31,198.24,8.2]
[1756741747945,338.78,198.31,198.24,2.84131687]
[1756741748242,338.88,198.31,198.23,7.49]
[1756741748642,341.72131687,198.31,198.23,7.49]
[1756741748840,0.1,198.28,198.19,10.33131687]
[1756741749042,125.96,198.27,198.19,10.33131687]
[1756741749438,125.96,198.27,198.19,7.49]
[1756741749645,0.1,198.28,198.19,7.49]
[1756741749946,126.0,198.27,198.2,2.84131687]
[1756741750142,0.03388626,198.25,198.2,2.84131687]
[1756741750447,0.03388626,198.25,198.21,7.49]
[1756741750644,338.78,198.31,198.24,7.49]
[1756741751241,0.1,198.35,198.25,7.49]
[1756741751452,0.1,198.35,198.2,2.84131687]
[1756741751453,27.66,198.34,198.27,7.49]
[1756741751847,338.98,198.43,198.27,7.49]
[1756741752047,0.13,198.37,198.27,7.49]
[1756741752253,126.02,198.36,198.27,7.49]
[1756741752454,126.15,198.36,198.33,0.03209675]
[1756741752756,126.02,198.36,198.33,0.03209675]
[1756741752952,2.84131687,198.38,198.33,0.03209675]
[1756741753156,126.0,198.37,198.33,0.03209675]
[1756741753551,0.13,198.42,198.33,0.03209675]
[1756741753755,0.13,198.42,198.34,7.49]
[1756741753955,0.13,198.4,198.33,0.03209675]
[1756741754159,2.84131687,198.38,198.33,0.03209675]
[1756741754364,0.13,198.37,198.33,0.03209675]
[1756741754657,0.13,198.34,198.33,0.03209675]
[1756741756154,4.5371,198.35,198.33,0.03209675]
[1756741756355,4.6671,198.35,198.33,0.03209675]
[1756741756550,2.97131687,198.38,198.33,0.03209675]
[1756741756860,126.1,198.34,198.33,0.03209675]
[1756741759059,126.1,198.34,198.33,7.52209675]
[1756741759262,0.13,198.38,198.33,7.52209675]
[1756741759455,126.21,198.38,198.33,7.52209675]
[1756741761056,126.08,198.38,198.33,0.03209675]
[1756741761456,2.84131687,198.36,198.33,0.03209675]
[1756741761761,0.13,198.35,198.33,0.03209675]
[1756741762157,2.84131687,198.36,198.33,0.03209675]
[1756741762657,0.13,198.35,198.33,0.03209675]
[1756741762864,2.84131687,198.36,198.33,0.03209675]
[1756741763159,2.97131687,198.39,198.33,0.03209675]
[1756741763358,0.13,198.37,198.33,0.03209675]
[1756741763564,126.3,198.38,198.33,0.03209675]
[1756741763565,4.5369,198.36,198.33,0.03209675]
[1756741763767,0.13,198.35,198.33,0.03209675]
[1756741764160,4.5367,198.37,198.33,0.03209675]
[1756741764359,4.6667,198.37,198.33,0.03209675]
[1756741765061,0.13,198.36,198.33,0.03209675]
[1756741765261,126.3,198.38,198.33,0.03209675]
[1756741765660,0.13,198.37,198.33,0.03209675]
[1756741766062,126.3,198.38,198.33,0.03209675]
[1756741766466,0.13,198.37,198.33,0.03209675]
[1756741766668,126.3,198.38,198.33,0.03209675]
[1756741766866,126.3,198.38,198.33,7.52209675]
[1756741767266,0.13,198.37,198.33,0.03209675]
[1756741767467,0.13,198.35,198.33,0.03209675]
[1756741767961,126.24,198.36,198.33,0.03209675]
[1756741768369,0.13,198.35,198.33,0.03209675]
[1756741768765,2.84131687,198.39,198.33,0.03209675]
[1756741768966,126.33,198.38,198.33,0.03209675]
[1756741769469,0.13,198.38,198.33,7.52209675]
[1756741769866,126.35,198.38,198.33,7.52209675]
[1756741770267,0.13,198.37,198.33,7.52209675]
[1756741770461,126.22,198.38,198.33,0.03209675]
[1756741771164,0.13,198.37,198.33,0.03209675]
[1756741771767,126.22,198.38,198.33,0.03209675]
[1756741771971,0.13,198.37,198.33,0.03209675]
[1756741772160,126.22,198.38,198.33,0.03209675]
[1756741772365,0.13,198.37,198.33,0.03209675]
[1756741772765,126.22,198.38,198.33,0.03209675]
[1756741773166,0.13,198.37,198.33,0.03209675]
[1756741773370,2.84131687,198.36,198.33,0.03209675]
[1756741773660,0.13,198.35,198.33,0.03209675]
[1756741775069,2.84131687,198.36,198.33,0.03209675]
[1756741775371,0.13,198.35,198.33,0.03209675]
[1756741776670,2.84131687,198.36,198.25,7.49]
[1756741776871,2.94131687,198.32,198.25,7.49]
[1756741777169,40.3,198.31,198.21,7.49]
[1756741777362,2.94131687,198.32,198.21,7.49]
[1756741777560,42.34,198.3,198.23,7.49]
[1756741777761,2.95131687,198.29,198.19,7.83]
[1756741777960,0.11,198.28,198.19,7.83]
[1756741778567,0.03257198,198.25,198.19,7.83]
[1756741780776,0.03257198,198.25,198.18,7.83]
[1756741783674,0.03257198,198.25,198.19,4.5405]
[1756741784276,0.03257198,198.25,198.18,7.83]
[1756741785378,0.03257198,198.25,198.21,4.54]
[1756741785578,0.03257198,198.25,198.22,7.83]
[1756741785875,0.03257198,198.25,198.21,4.54]
[1756741786271,0.03257198,198.25,198.22,7.83]
[1756741786977,0.03257198,198.25,198.22,4.5399]
[1756741787178,0.03257198,198.25,198.21,7.83]
[1756741787472,0.03257198,198.25,198.2,2.84131687]
[1756741787672,0.03257198,198.25,198.21,7.83]
[1756741787872,0.03257198,198.25,198.2,2.84131687]
[1756741788275,0.03257198,198.25,198.21,7.83]
[1756741789077,0.03257198,198.25,198.2,7.38161687]
[1756741789281,0.03257198,198.25,198.21,7.83]
[1756741789780,0.03257198,198.25,198.2,7.38161687]
[1756741790275,0.03257198,198.25,198.2,2.84131687]
[1756741790477,0.03257198,198.25,198.21,7.83]
[1756741790780,0.03257198,198.25,198.19,2.84131687]
[1756741791679,0.03257198,198.25,198.2,12.3703]
[1756741791885,0.03257198,198.25,198.2,4.5403]
[1756741792480,0.03257198,198.25,198.21,7.83]
[1756741792679,0.14257198,198.25,198.21,7.83]
[1756741793776,0.03257198,198.25,198.19,2.84131687]
[1756741793983,0.03257198,198.25,198.2,7.83]